Workbook

Sheet Start
B1: OM DEN HÄR MALLEN
B2: Med hjälp av den här mallen kan du skapa en ekonomisk planering för nystartade företag.
B3: Få en överblick över en ekonomisk planering i kalkylbladet Översikt.
B4: Använd kalkylbladen för mallarna Startavgifter och Vinst och förlust för att hålla koll på startavgifter, samt vinst och förlust.
B5: Kalkylblad med exempel på startavgifter, samt vinster och förluster innehåller exempeldata i tabeller.
B6: Obs!
B7: Ytterligare anvisningar finns i kolumn A i alla kalkylblad. Den här texten har avsiktligt dolts. Om du vill ta bort texten markerar du kolumn A och väljer sedan TA BORT. Om du vill att texten ska visas markerar du kolumn A och ändrar sedan teckenfärg.
B8: För mer information om tabeller trycker du på SKIFT och sedan på F10 i en tabell. Välj alternativet TABELL och sedan ALTERNATIVTEXT.

Sheet Översikt
B1: EKONOMISK PLANERING FÖR NYSTARTADE FÖRETAG
B2: En ekonomisk planering är den sista pusselbiten i planering för hela företaget. När du har kommit underfund med din produkt, målmarknad och dina målkunder, samt prissättningen, kan du börja förutse kostnader, försäljning och vinst. Detta tillsammans med dina antaganden hjälper dig att beräkna din försäljningsprognos. Den andra delen av verksamheten blir de utgifter som du förväntar dig. Detta är viktigt att kontrollera kontinuerligt för att se om företaget går med vinst. Det är även viktigt att veta vilka utgifter du själv behöver betala när du startar din verksamhet innan kundförsäljningen och dess intäkt kommer igång.
B3: Beräknade startavgifter: Tabellen på nästa flik, mallen för startavgifter, innehåller en tom mall med instruktioner för att komma igång. På nästa flik, exempel på startavgifter, visas exempel på löpande kostnader och engångskostnader som du kan behöva för att starta ditt företag. Många företag betalas med kredit över tid och har inte pengar som kommer in omedelbart. Det är viktigt att uppskatta när intäkterna kommer igång genom att göra ett antagande om hur många månader med löpande kostnader, utöver engångskostnader, som du måste betala med hjälp av besparingar eller investeringar.
B4: Modell för beräknad vinst och förlust: På fliken etikettera Mall för vinst och förlust hittar du en tom mall för att göra försäljningsprognoser och en vinst- och förlustmodell. På nästa flik, exempel på vinst och förlust, visas ett urval av de prognoser som ett litet företag förutser för de första 12 månaderna av verksamheten. Den översta delen av tabellen i varje modell visar beräknad försäljning och bruttovinst. Här kan du börja skapa din försäljningsprognos. I nästa avsnitt nedan specificeras de återkommande utgifter som du beräknar för samma månader. Dessa bör vara konsekventa med de beräknade startavgifterna som du slutförde i föregående avsnitt. Längst ned i den här modellen kan du se när verksamheten blir lönsam och vilka utgifter som påverkar din lönsamhet mest.
B5: Håll reda på de antaganden som du gör för att beräkna intäkter och sålda varor. För företag som inte har påbörjat sin verksamhet ännu bör du ändå ha en förståelse för hur du beräknar dessa för din produkt eller tjänst. Några riktlinjer för beräkningar finns nedan:
B6: Intäkter: Börja med att fastställa utifrån din målmarknad (potentiella kunder, företag eller konsumenter) hur många av dessa som skulle kunna ingå i målgruppen under det första året. Hur många procent av dessa förväntar du dig att skriva avtal med? Hur mycket kommer de köpa av din produkt eller tjänst i genomsnitt? Hur mycket kan du göra under den första månaden, den andra och så vidare? Du kan välja ett tal den första månaden och sedan låta det växa procentuellt, t.ex. med 10 %. Om du till exempel säljer städtjänster till småföretag i din stad och det finns 500 företag som du tror behöver tjänsten. Om det genomsnittliga kontraktet är på 2500 SEK/månad behöver du uppskatta hur många företag du kan skriva kontrakt med under varje månad för det första året.
B7: Kostnad för sålda varor (KSV): Detta bör beräknas för produkter och vissa tjänster. Det är den inkluderade kostnaden för att producera produkten. Om du till exempel säljer kläder skulle kostnaderna (KSV) vara det pris du betalade för att köpa kläder från en tillverkare. Om du tillverkar kläderna själv skulle det vara kostnaden för materialet och kostnaden för att tillverka dem. För tjänster skulle det vara den direkta kostnaden för en timmes fakturerbart arbete. Allt under Bruttovinst på Vinst och förlust är fasta kostnader eller omkostnader för den övergripande verksamheten, till exempel hyra, telefon eller t.o.m. marknadsföring.

Sheet Mall för uppstartskostnader
B1: STARTAVGIFTER
B2: Ditt café | C2: =TODAY() -> 2022-01-18
B4: KOSTNADER | C4: MÅNADER | D4: KOSTNAD/MÅNAD | E4: ENGÅNGSKOSTNAD | F4: TOTALKOSTNAD
B5: Annonsering/Marknadsföring | F5: =(C5*D5)+IF(E5>0,E5,0) -> 0 kr
B6: Anställdas löner | F6: =(C6*D6)+IF(E6>0,E6,0) -> 0 kr
B7: Anställdas löneskatter och förmåner | F7: 0 kr
B8: Hyra/Allmännyttiga tjänster | F8: 0 kr
B9: Porto/Frakt | F9: 0 kr
B10: BERÄKNAD STARTBUDGET | F10: =SUBTOTAL(109,Uppstart[TOTALKOSTNAD]) -> 0

Sheet Exempel på uppstartskostnader
B1: STARTAVGIFTER
B2: ='Mall för uppstartskostnader'!B2 -> Ditt café | C2: =TODAY() -> 2022-01-18
B4: KOSTNADER | C4: MÅNADER | D4: KOSTNAD/MÅNAD | E4: ENGÅNGSKOSTNAD | F4: TOTALKOSTNAD
B5: Annonsering/Marknadsföring | C5: 3 | D5: 300 kr | E5: 2,000 kr | F5: =(C5*D5)+IF(E5>0,E5,0) -> 2,900 kr
B6: Anställdas löner | C6: 4 | D6: 3,500 kr | E6: 2 kr | F6: =(C6*D6)+IF(E6>0,E6,0) -> 14,002 kr
B7: Anställdas löneskatter och förmåner | C7: 4 | D7: 500 kr | E7: 2,000 kr | F7: 4,000 kr
B8: Hyra/Allmännyttiga tjänster | C8: 4 | D8: 750 kr | E8: 3,000 kr | F8: 6,000 kr
B9: Porto/Frakt | C9: 1 | D9: 25 kr | E9: 25 kr | F9: 50 kr
B10: BERÄKNAD STARTBUDGET | F10: =SUM(F6:F9) -> 24,052 kr

Sheet Mall för resultaträkningar
B1: STARTAVGIFTER
B2: ='Mall för uppstartskostnader'!B2 -> Ditt café | C2: =TODAY() -> 2022-01-18
B4: INTÄKTER | C4: JAN | D4: FEB | E4: MAR | F4: APR | G4: MAJ | H4: JUN | I4: JUL | J4: AUG | K4: SEP | L4: OKT | M4: NOV | N4: DEC | O4: Året hittills (YTD)
B5: Beräknad produktförsäljning | C5: 0 kr | D5: 0 kr | E5: 0 kr | F5: 0 kr | G5: 0 kr | H5: 0 kr | I5: 0 kr | J5: 0 kr | K5: 0 kr | L5: 0 kr | M5: 0 kr | N5: 0 kr | O5: =SUM(C5:N5) -> 0 kr
B6: Mindre försäljningsreturer och rabatter | C6: 0 kr | D6: 0 kr | E6: 0 kr | F6: 0 kr | G6: 0 kr | H6: 0 kr | I6: 0 kr | J6: 0 kr | K6: 0 kr | L6: 0 kr | M6: 0 kr | N6: 0 kr | O6: =SUM(C6:N6) -> 0 kr
B7: Tjänsteintäkter | C7: 0 kr | D7: 0 kr | E7: 0 kr | F7: 0 kr | G7: 0 kr | H7: 0 kr | I7: 0 kr | J7: 0 kr | K7: 0 kr | L7: 0 kr | M7: 0 kr | N7: 0 kr | O7: 0 kr
B8: Övriga intäkter | C8: 0 kr | D8: 0 kr | E8: 0 kr | F8: 0 kr | G8: 0 kr | H8: 0 kr | I8: 0 kr | J8: 0 kr | K8: 0 kr | L8: 0 kr | M8: 0 kr | N8: 0 kr | O8: 0 kr
B9: Nettoomsättning | C9: =SUBTOTAL(109,ExempelIntäkter[JAN]) -> 0 kr | D9: =SUBTOTAL(109,ExempelIntäkter[FEB]) -> 0 kr | E9: =SUBTOTAL(109,ExempelIntäkter[MAR]) -> 0 kr | F9: =SUBTOTAL(109,ExempelIntäkter[APR]) -> 0 kr | G9: =SUBTOTAL(109,ExempelIntäkter[MAJ]) -> 0 kr | H9: =SUBTOTAL(109,ExempelIntäkter[JUN]) -> 0 kr | I9: =SUBTOTAL(109,ExempelIntäkter[JUL]) -> 0 kr | J9: =SUBTOTAL(109,ExempelIntäkter[AUG]) -> 0 kr | K9: =SUBTOTAL(109,ExempelIntäkter[SEP]) -> 0 kr | L9: =SUBTOTAL(109,ExempelIntäkter[OKT]) -> 0 kr | M9: =SUBTOTAL(109,ExempelIntäkter[NOV]) -> 0 kr | N9: =SUBTOTAL(109,ExempelIntäkter[DEC]) -> 0 kr | O9: =SUM(ExempelIntäkter[[#Totals],[JAN]:[DEC]]) -> 0 kr
B10: Kostnad för sålda varor | C10: =C5*0.4 -> 0 kr | D10: 0 kr | E10: 0 kr | F10: 0 kr | G10: 0 kr | H10: 0 kr | I10: 0 kr | J10: 0 kr | K10: 0 kr | L10: 0 kr | M10: 0 kr | N10: 0 kr | O10: 0 kr
B11: Bruttovinst | C11: =IFERROR(ExempelIntäkter[[#Totals],[JAN]]-C10,"") -> 0 kr | D11: =IFERROR(ExempelIntäkter[[#Totals],[FEB]]-D10,"") -> 0 kr | E11: =IFERROR(ExempelIntäkter[[#Totals],[MAR]]-E10,"") -> 0 kr | F11: =IFERROR(ExempelIntäkter[[#Totals],[APR]]-F10,"") -> 0 kr | G11: =IFERROR(ExempelIntäkter[[#Totals],[MAJ]]-G10,"") -> 0 kr | H11: =IFERROR(ExempelIntäkter[[#Totals],[JUN]]-H10,"") -> 0 kr | I11: =IFERROR(ExempelIntäkter[[#Totals],[JUL]]-I10,"") -> 0 kr | J11: =IFERROR(ExempelIntäkter[[#Totals],[AUG]]-J10,"") -> 0 kr | K11: =IFERROR(ExempelIntäkter[[#Totals],[SEP]]-K10,"") -> 0 kr | L11: =IFERROR(ExempelIntäkter[[#Totals],[OKT]]-L10,"") -> 0 kr | M11: =IFERROR(ExempelIntäkter[[#Totals],[NOV]]-M10,"") -> 0 kr | N11: =IFERROR(ExempelIntäkter[[#Totals],[DEC]]-N10,"") -> 0 kr | O11: 0 kr
B13: UTGIFTER | C13: JAN | D13: FEB | E13: MAR | F13: APR | G13: MAJ | H13: JUN | I13: JUL | J13: AUG | K13: SEP | L13: OKT | M13: NOV | N13: DEC | O13: Året hittills (YTD)
B14: Löner | C14: 0 kr | D14: 0 kr | E14: 0 kr | F14: 0 kr | G14: 0 kr | H14: 0 kr | I14: 0 kr | J14: 0 kr | K14: 0 kr | L14: 0 kr | M14: 0 kr | N14: 0 kr | O14: =SUM(C14:N14) -> 0 kr
B15: Marknadsföring/Annonsering | C15: 0 kr | D15: 0 kr | E15: 0 kr | F15: 0 kr | G15: 0 kr | H15: 0 kr | I15: 0 kr | J15: 0 kr | K15: 0 kr | L15: 0 kr | M15: 0 kr | N15: 0 kr | O15: =SUM(C15:N15) -> 0 kr
B16: Försäljningsprovisioner | C16: 0 kr | D16: 0 kr | E16: 0 kr | F16: 0 kr | G16: 0 kr | H16: 0 kr | I16: 0 kr | J16: 0 kr | K16: 0 kr | L16: 0 kr | M16: 0 kr | N16: 0 kr | O16: 0 kr
B17: Hyra | C17: 0 kr | D17: 0 kr | E17: 0 kr | F17: 0 kr | G17: 0 kr | H17: 0 kr | I17: 0 kr | J17: 0 kr | K17: 0 kr | L17: 0 kr | M17: 0 kr | N17: 0 kr | O17: 0 kr
B18: Övrigt 1 | C18: 0 kr | D18: 0 kr | E18: 0 kr | F18: 0 kr | G18: 0 kr | H18: 0 kr | I18: 0 kr | J18: 0 kr | K18: 0 kr | L18: 0 kr | M18: 0 kr | N18: 0 kr | O18: 0 kr
B19: Totala utgifter | C19: =IF(SUM(C14:C18)=0,"",SUM(C14:C18)) ->  | O19: =SUM(Exempelutgifter[[#Totals],[JAN]:[DEC]]) -> 0 kr
B20: Inkomst före skatt | C20: =IFERROR('Mall för resultaträkningar'!$C$11-Exempelutgifter[[#Totals],[JAN]],"") ->  | D20: =IFERROR('Mall för resultaträkningar'!$C$11-Exempelutgifter[[#Totals],[FEB]],"") ->  | E20: =IFERROR('Mall för resultaträkningar'!$C$11-Exempelutgifter[[#Totals],[MAR]],"") ->  | F20: =IFERROR('Mall för resultaträkningar'!$C$11-Exempelutgifter[[#Totals],[APR]],"") ->  | G20: =IFERROR('Mall för resultaträkningar'!$C$11-Exempelutgifter[[#Totals],[MAJ]],"") ->  | H20: =IFERROR('Mall för resultaträkningar'!$C$11-Exempelutgifter[[#Totals],[JUN]],"") ->  | I20: =IFERROR('Mall för resultaträkningar'!$C$11-Exempelutgifter[[#Totals],[JUL]],"") ->  | J20: =IFERROR('Mall för resultaträkningar'!$C$11-Exempelutgifter[[#Totals],[AUG]],"") ->  | K20: =IFERROR('Mall för resultaträkningar'!$C$11-Exempelutgifter[[#Totals],[SEP]],"") ->  | L20: =IFERROR('Mall för resultaträkningar'!$C$11-Exempelutgifter[[#Totals],[OKT]],"") ->  | M20: =IFERROR('Mall för resultaträkningar'!$C$11-Exempelutgifter[[#Totals],[NOV]],"") ->  | N20: =IFERROR('Mall för resultaträkningar'!$C$11-Exempelutgifter[[#Totals],[DEC]],"") ->  | O20: 0 kr
B21: Utgifter för inkomstskatt | C21: =IFERROR(C20*0.15," ") ->  | D21: =IFERROR(D20*0.15," ") ->  | E21: =IFERROR(E20*0.15," ") ->  | O21: =SUM('Mall för resultaträkningar'!$C$21:$N$21) -> 0 kr
B23: NETTOINKOMST | C23: =IFERROR(C20-'Mall för resultaträkningar'!$C$21,"") ->  | D23: =IFERROR(D20-'Mall för resultaträkningar'!$D$21,"") ->  | E23: =IFERROR(E20-'Mall för resultaträkningar'!$E$21,"") ->  | F23: =IFERROR(F20-'Mall för resultaträkningar'!$F$21,"") ->  | G23: =IFERROR(G20-'Mall för resultaträkningar'!$G$21,"") ->  | H23: =IFERROR(H20-'Mall för resultaträkningar'!$H$21,"") ->  | I23: =IFERROR(I20-'Mall för resultaträkningar'!$I$21,"") ->  | J23: =IFERROR(J20-'Mall för resultaträkningar'!$J$21,"") ->  | K23: =IFERROR(K20-'Mall för resultaträkningar'!$K$21,"") ->  | L23: =IFERROR(L20-'Mall för resultaträkningar'!$L$21,"") ->  | M23: =IFERROR(M20-'Mall för resultaträkningar'!$M$21,"") ->  | N23: =IFERROR(N20-'Mall för resultaträkningar'!$N$21,"") ->  | O23: =IFERROR(O20-'Mall för resultaträkningar'!$O$21,"") -> 0 kr

Sheet Exempel på resultaträkningar
B1: STARTAVGIFTER
B2: ='Mall för uppstartskostnader'!B2 -> Ditt café | C2: =TODAY() -> 2022-01-18
B4: INTÄKTER | C4: JAN | D4: FEB | E4: MAR | F4: APR | G4: MAJ | H4: JUN | I4: JUL | J4: AUG | K4: SEP | L4: OKT | M4: NOV | N4: DEC | O4: Året hittills (YTD)
B5: Beräknad produktförsäljning | C5: 5,000 kr | D5: 13,000 kr | E5: 16,000 kr | F5: 7,000 kr | G5: 14,500 kr | H5: 16,400 kr | I5: 22,500 kr | J5: 23,125 kr | K5: 24,549 kr | L5: 22,000 kr | M5: 25,000 kr | N5: 27,349 kr | O5: =SUM(C5:N5) -> 216,423 kr
B6: Mindre försäljningsreturer och rabatter | C6: 0 kr | D6: -350 kr | E6: 0 kr | F6: -206 kr | G6: -234 kr | H6: 0 kr | I6: 0 kr | J6: -280 kr | K6: -1,200 kr | L6: -1,600 kr | M6: 0 kr | N6: -2,400 kr | O6: =SUM(C6:N6) -> -6,270 kr
B7: Tjänsteintäkter | C7: 0 kr | D7: 0 kr | E7: 0 kr | F7: 0 kr | G7: 0 kr | H7: 250 kr | I7: 350 kr | J7: 100 kr | K7: 0 kr | L7: 0 kr | M7: 1,245 kr | N7: 1,360 kr | O7: 3,305 kr
B8: Övriga intäkter | C8: 0 kr | D8: 0 kr | E8: 0 kr | F8: 0 kr | G8: 0 kr | H8: 0 kr | I8: 0 kr | J8: 1,500 kr | K8: 0 kr | L8: 0 kr | M8: 0 kr | N8: 0 kr | O8: 1,500 kr
B9: Nettoomsättning | C9: =SUBTOTAL(109,FaktiskaIntäkter[JAN]) -> 5,000 kr | D9: =SUBTOTAL(109,FaktiskaIntäkter[FEB]) -> 12,650 kr | E9: =SUBTOTAL(109,FaktiskaIntäkter[MAR]) -> 16,000 kr | F9: =SUBTOTAL(109,FaktiskaIntäkter[APR]) -> 6,794 kr | G9: =SUBTOTAL(109,FaktiskaIntäkter[MAJ]) -> 14,266 kr | H9: =SUBTOTAL(109,FaktiskaIntäkter[JUN]) -> 16,650 kr | I9: =SUBTOTAL(109,FaktiskaIntäkter[JUL]) -> 22,850 kr | J9: =SUBTOTAL(109,FaktiskaIntäkter[AUG]) -> 24,445 kr | K9: =SUBTOTAL(109,FaktiskaIntäkter[SEP]) -> 23,349 kr | L9: =SUBTOTAL(109,FaktiskaIntäkter[OKT]) -> 20,400 kr | M9: =SUBTOTAL(109,FaktiskaIntäkter[NOV]) -> 26,245 kr | N9: =SUBTOTAL(109,FaktiskaIntäkter[DEC]) -> 26,309 kr | O9: =SUM(FaktiskaIntäkter[[#Totals],[JAN]:[DEC]]) -> 214,958 kr
B10: Kostnad för sålda varor | C10: =C5*0.4 -> 2,000 kr | D10: 5,200 kr | E10: 6,400 kr | F10: 2,800 kr | G10: 5,800 kr | H10: 6,560 kr | I10: 9,000 kr | J10: 9,250 kr | K10: 9,820 kr | L10: 8,800 kr | M10: 10,000 kr | N10: 10,940 kr | O10: 86,569 kr
B11: Bruttovinst | C11: =IFERROR(FaktiskaIntäkter[[#Totals],[JAN]]-C10,"") -> 3,000 kr | D11: =IFERROR(FaktiskaIntäkter[[#Totals],[FEB]]-D10,"") -> 7,450 kr | E11: =IFERROR(FaktiskaIntäkter[[#Totals],[MAR]]-E10,"") -> 9,600 kr | F11: =IFERROR(FaktiskaIntäkter[[#Totals],[APR]]-F10,"") -> 3,994 kr | G11: =IFERROR(FaktiskaIntäkter[[#Totals],[MAJ]]-G10,"") -> 8,466 kr | H11: =IFERROR(FaktiskaIntäkter[[#Totals],[JUN]]-H10,"") -> 10,090 kr | I11: =IFERROR(FaktiskaIntäkter[[#Totals],[JUL]]-I10,"") -> 13,850 kr | J11: =IFERROR(FaktiskaIntäkter[[#Totals],[AUG]]-J10,"") -> 15,195 kr | K11: =IFERROR(FaktiskaIntäkter[[#Totals],[SEP]]-K10,"") -> 13,529 kr | L11: =IFERROR(FaktiskaIntäkter[[#Totals],[OKT]]-L10,"") -> 11,600 kr | M11: =IFERROR(FaktiskaIntäkter[[#Totals],[NOV]]-M10,"") -> 16,245 kr | N11: =IFERROR(FaktiskaIntäkter[[#Totals],[DEC]]-N10,"") -> 15,369 kr | O11: 128,389 kr
B13: UTGIFTER | C13: JAN | D13: FEB | E13: MAR | F13: APR | G13: MAJ | H13: JUN | I13: JUL | J13: AUG | K13: SEP | L13: OKT | M13: NOV | N13: DEC | O13: Året hittills (YTD)
B14: Löner | C14: 2,500 kr | D14: 2,500 kr | E14: 3,500 kr | F14: 5,000 kr | G14: 5,000 kr | H14: 5,000 kr | I14: 8,000 kr | J14: 9,000 kr | K14: 9,000 kr | L14: 9,000 kr | M14: 9,000 kr | N14: 9,000 kr | O14: =SUM(C14:N14) -> 76,500 kr
B15: Marknadsföring/Annonsering | C15: 400 kr | D15: 450 kr | E15: 450 kr | F15: 450 kr | G15: 900 kr | H15: 900 kr | I15: 900 kr | J15: 900 kr | K15: 900 kr | L15: 900 kr | M15: 1,200 kr | N15: 1,200 kr | O15: =SUM(C15:N15) -> 9,550 kr
B16: Försäljningsprovisioner | C16: 250 kr | D16: 650 kr | E16: 800 kr | F16: 350 kr | G16: 725 kr | H16: 820 kr | I16: 1,125 kr | J16: 1,156 kr | K16: 1,227 kr | L16: 1,100 kr | M16: 1,250 kr | N16: 1,367 kr | O16: 10,821 kr
B17: Hyra | C17: 1,250 kr | D17: 1,250 kr | E17: 1,250 kr | F17: 1,250 kr | G17: 1,250 kr | H17: 1,250 kr | I17: 1,250 kr | J17: 1,250 kr | K17: 1,250 kr | L17: 1,250 kr | M17: 1,250 kr | N17: 1,250 kr | O17: 15,000 kr
B18: Totala utgifter | C18: =IF(SUM(C14:C17)=0,"",SUM(C14:C17)) -> 4,400 kr | D18: 4,850 kr | E18: 6,000 kr | F18: 7,050 kr | G18: 7,875 kr | H18: 7,970 kr | I18: 11,275 kr | J18: 12,306 kr | K18: 12,377 kr | L18: 12,250 kr | M18: 12,700 kr | N18: 12,817 kr | O18: =SUM(FaktiskaUtgifter[[#Totals],[JAN]:[DEC]]) -> 111,871 kr
B19: Inkomst före skatt | C19: =IFERROR('Exempel på resultaträkningar'!$C$11-FaktiskaUtgifter[[#Totals],[JAN]],"") -> -1,400 kr | D19: =IFERROR('Exempel på resultaträkningar'!$D$11-FaktiskaUtgifter[[#Totals],[FEB]],"") -> 2,600 kr | E19: =IFERROR('Exempel på resultaträkningar'!$E$11-FaktiskaUtgifter[[#Totals],[MAR]],"") -> 3,600 kr | F19: =IFERROR('Exempel på resultaträkningar'!$F$11-FaktiskaUtgifter[[#Totals],[APR]],"") -> -3,056 kr | G19: =IFERROR('Exempel på resultaträkningar'!$G$11-FaktiskaUtgifter[[#Totals],[MAJ]],"") -> 591 kr | H19: =IFERROR('Exempel på resultaträkningar'!$H$11-FaktiskaUtgifter[[#Totals],[JUN]],"") -> 2,120 kr | I19: =IFERROR('Exempel på resultaträkningar'!$I$11-FaktiskaUtgifter[[#Totals],[JUL]],"") -> 2,575 kr | J19: =IFERROR('Exempel på resultaträkningar'!$J$11-FaktiskaUtgifter[[#Totals],[AUG]],"") -> 2,889 kr | K19: =IFERROR('Exempel på resultaträkningar'!$K$11-FaktiskaUtgifter[[#Totals],[SEP]],"") -> 1,152 kr | L19: =IFERROR('Exempel på resultaträkningar'!$L$11-FaktiskaUtgifter[[#Totals],[OKT]],"") -> -650 kr | M19: =IFERROR('Exempel på resultaträkningar'!$M$11-FaktiskaUtgifter[[#Totals],[NOV]],"") -> 3,545 kr | N19: =IFERROR('Exempel på resultaträkningar'!$N$11-FaktiskaUtgifter[[#Totals],[DEC]],"") -> 2,552 kr | O19: =SUM(C19:N19) -> 16,518 kr
B20: Utgifter för inkomstskatt | C20: =C19*0.15 -> -210 kr | D20: 390 kr | E20: =E19*0.15 -> 540 kr | F20: =F19*0.15 -> -458 kr | G20: =G19*0.15 -> 89 kr | H20: =H19*0.15 -> 318 kr | I20: =I19*0.15 -> 386 kr | J20: =J19*0.15 -> 433 kr | K20: =K19*0.15 -> 173 kr | L20: =L19*0.15 -> -98 kr | M20: =M19*0.15 -> 532 kr | N20: =N19*0.15 -> 383 kr | O20: =SUM('Exempel på resultaträkningar'!$C$20:$N$20) -> 2,478 kr
B22: NETTOINKOMST | C22: =IFERROR(C19-'Exempel på resultaträkningar'!$C$20," ") -> -1,190 kr | D22: =IFERROR(D19-'Exempel på resultaträkningar'!$D$20," ") -> 2,210 kr | E22: =IFERROR(E19-'Exempel på resultaträkningar'!$E$20,"") -> 3,060 kr | F22: =IFERROR(F19-'Exempel på resultaträkningar'!$F$20,"") -> -2,598 kr | G22: =IFERROR(G19-'Exempel på resultaträkningar'!$G$20,"") -> 502 kr | H22: =IFERROR(H19-'Exempel på resultaträkningar'!$H$20,"") -> 1,802 kr | I22: =IFERROR(I19-'Exempel på resultaträkningar'!$I$20,"") -> 2,189 kr | J22: =IFERROR(J19-'Exempel på resultaträkningar'!$J$20,"") -> 2,455 kr | K22: =IFERROR(K19-'Exempel på resultaträkningar'!$K$20,"") -> 979 kr | L22: =IFERROR(L19-'Exempel på resultaträkningar'!$L$20,"") -> -553 kr | M22: =IFERROR(M19-'Exempel på resultaträkningar'!$M$20,"") -> 3,013 kr | N22: =IFERROR(N19-'Exempel på resultaträkningar'!$N$20,"") -> 2,169 kr | O22: =IFERROR(O19-'Exempel på resultaträkningar'!$O$20,"") -> 14,040 kr
